fUSD/lending_fUSD_20250215
["ID","MTS","AMOUNT","RATE_DAILY","PERIOD"]
[353203168,1739646650763,-153.0,0.00012543,2]
[353203169,1739646650772,-153.0,0.00012543,2]
[353203170,1739646650781,-153.0,0.00012543,2]
[353203171,1739646650791,-153.0,0.00012543,2]
[353203172,1739646650800,-153.0,0.00012543,2]
[353203173,1739646650810,-153.0,0.00012543,2]
[353203174,1739646650820,-153.0,0.00012543,2]
[353203175,1739646650832,-153.0,0.00012543,2]
[353203176,1739646650846,-153.0,0.00012543,2]
[353203177,1739646650857,-153.0,0.00012543,2]
[353203178,1739646650995,-153.0,0.00012543,2]
[353203179,1739646651025,-153.0,0.00012543,2]
[353203180,1739646651034,-153.0,0.00012543,2]
[353203181,1739646651044,-153.0,0.00012543,2]
[353203182,1739646651054,-153.0,0.00012543,2]
[353203183,1739646651063,-153.0,0.00012543,2]
[353203184,1739646651073,-153.0,0.00012543,2]
[353203185,1739646651082,-153.0,0.00012543,2]
[353203186,1739646651091,-153.0,0.00012543,2]
[353203187,1739646651101,-153.0,0.00012543,2]
[353203188,1739646651111,-153.0,0.00012543,2]
[353203189,1739646651121,-153.0,0.00012543,2]
[353203190,1739646651130,-153.0,0.00012543,2]
[353203191,1739646651139,-153.0,0.00012543,2]
[353203192,1739646651149,-153.0,0.00012543,2]
[353203193,1739646651159,-153.0,0.00012543,2]
[353203194,1739646651168,-153.0,0.00012543,2]
[353203195,1739646651184,-153.0,0.00012543,2]
[353203196,1739646651193,-153.0,0.00012543,2]
[353203197,1739646651203,-153.0,0.00012543,2]
[353203198,1739646651213,-153.0,0.00012543,2]
[353203199,1739646651223,-152.0,0.0001255,6]
[353203200,1739646651233,-1493.0,0.00012551,2]
[353203201,1739646651243,-721.72,0.00012602,2]
[353203202,1739646651253,-533.46,0.00012602,2]
[353203203,1739646651264,-721.72,0.00012684,2]
[353203204,1739646651273,-533.46,0.00012684,2]
[353203205,1739646651283,-1299.9,0.00012708,2]
[353203206,1739646651292,-152.0,0.00012713,7]
[353203207,1739646651302,-1022.82125585,0.0001274,2]
[353203208,1739646651311,-1066.51026755,0.0001274,2]
[353203209,1739646651321,-1053.88653214,0.0001274,2]
[353203210,1739646651330,-3759.88666793,0.00012755,2]
[353203211,1739646651340,-533.46,0.00012766,2]
[353203212,1739646651350,-721.72,0.00012767,2]
[353203213,1739646651359,-156.04846152,0.00012779,2]
[353203214,1739646651368,-800.0,0.00012798,2]
[353203215,1739646651377,-500.0,0.00012798,2]
[353203216,1739646651386,-900.0,0.00012798,2]
[353203217,1739646651396,-721.81,0.00012849,2]
[353203218,1739646651405,-533.46,0.00012849,2]
[353203219,1739646651414,-152.0,0.00012876,8]
[353203220,1739646651424,-533.57,0.00012931,2]
[353203221,1739646651433,-550.0,0.00013,2]
[353203222,1739646651443,-156.04846152,0.00013019,2]
[353203223,1739646651453,-152.0,0.0001304,9]
[353203224,1739646651462,-939.849305,0.00013057,2]
[353203225,1739646651471,-939.849305,0.00013057,2]
[353203226,1739646651481,-1000.0,0.00013084,2]
[353203227,1739646651490,-440.05,0.00013096,2]
[353203228,1739646651499,-1508.22,0.00013096,2]
[353203229,1739646651508,-440.05,0.00013096,2]
[353203230,1739646651518,-437.45,0.00013096,2]
[353203231,1739646651527,-150.0,0.00013134,2]
[353203232,1739646651536,-3759.88666793,0.00013148,2]
[353203233,1739646651545,-152.0,0.00013203,10]
[353203234,1739646651555,-156.04846152,0.00013259,2]
[353203235,1739646651564,-500.0,0.0001326,2]
[353203236,1739646651573,-150.0,0.00013315,2]
[353203237,1739646651582,-150.0,0.00013315,2]
[353203238,1739646651591,-274.18640656,0.00013315,2]
[353203239,1739646651601,-150.0,0.00013315,2]
[353203240,1739646651610,-150.00000001,0.00013315,2]
[353203241,1739646651620,-150.0,0.00013315,2]
[353203242,1739646651629,-152.0,0.00013366,11]
[353203243,1739646651639,-500.0,0.00013472,2]
[353203244,1739646651648,-156.04846152,0.00013499,2]
[353203245,1739646651657,-5000.0,0.000135,2]
[353203246,1739646651667,-152.0,0.00013529,12]
[353203247,1739646651675,-3759.88666793,0.0001354,2]
[353203248,1739646651684,-150.0,0.00013631,2]
[353203249,1739646651694,-152.0,0.00013693,13]
[353203250,1739646651703,-4000.0,0.00013699,2]
[353203251,1739646651713,-200.0,0.00013699,2]
[353203252,1739646651722,-165.28,0.00013699,2]
[353203253,1739646651731,-1129.715606,0.00013699,2]
[353203254,1739646651741,-1129.715606,0.00013699,2]
[353203255,1739646651750,-151.0,0.00013699,2]
[353203256,1739646651759,-275.124712,0.00013699,2]
[353203257,1739646651769,-275.124712,0.00013699,2]
[353203258,1739646651779,-262.45,0.00013732,2]
[353203259,1739646651788,-156.04846152,0.0001374,2]
[353203260,1739646651798,-471.48,0.00013783,2]
[353203261,1739646651807,-152.0,0.00013856,14]
[353203262,1739646651816,-3759.88666793,0.00013932,2]
[353203263,1739646651826,-151.0,0.00013944,2]
[353203264,1739646651835,-156.04846152,0.0001398,2]
[353203265,1739646651844,-5000.0,0.00014,2]
[353203266,1739646651854,-5000.0,0.00014,2]
[353203267,1739646651863,-152.0,0.00014019,15]
[353203268,1739646651872,-150.0,0.00014055,2]
[353203269,1739646651882,-150.0,0.00014055,2]
[353203270,1739646651891,-150.0,0.00014055,2]
[353203271,1739646651900,-438.93,0.00014055,2]
[353203272,1739646651909,-800.0,0.00014168,2]
[353203273,1739646651918,-900.0,0.00014168,2]
[353203274,1739646651927,-150.0,0.00014179,2]
[353203275,1739646651936,-152.0,0.00014182,16]
[353203276,1739646651945,-156.04846152,0.0001422,2]
[353203277,1739646651954,-151.0,0.00014248,2]
[353203278,1739646651963,-151.0,0.00014248,2]
[353203279,1739646651972,-151.0,0.00014248,2]
[353203280,1739646651982,-151.0,0.00014248,2]
[353203281,1739646651991,-758.027104,0.00014248,2]
[353203282,1739646652000,-758.027104,0.00014248,2]
[353203283,1739646652009,-1000.0,0.00014274,2]
[353203284,1739646652019,-3759.88666793,0.00014324,2]
[353203285,1739646652028,-152.0,0.00014346,17]
[353203286,1739646652038,-1000.0,0.000144,2]
[353203287,1739646652047,-1000.0,0.000144,2]
[353203288,1739646652056,-1098.0,0.000144,2]
[353203289,1739646652065,-1000.0,0.000144,3]
[353203290,1739646652074,-840.0,0.000144,3]
[353203291,1739646652084,-1000.0,0.000144,2]
[353203292,1739646652093,-1000.0,0.000144,2]
[353203293,1739646652102,-1001.0,0.000144,2]
[353203294,1739646652111,-156.04846152,0.0001446,2]
[353203295,1739646652120,-500.0,0.00014493,2]
[353203296,1739646652130,-2535.0,0.00014498,6]
[353203297,1739646652139,-1000.0,0.000145,2]
[353203298,1739646652148,-1003.0,0.000145,2]
[353203299,1739646652157,-1000.0,0.000145,2]
[353203300,1739646652167,-1000.0,0.000145,2]
[353203301,1739646652179,-1000.0,0.000145,3]
[353203302,1739646652189,-1000.0,0.000145,3]
[353203303,1739646652199,-1035.50658979,0.00014504,2]
[353203304,1739646652208,-152.0,0.00014509,18]
[353203305,1739646652219,-1362.42,0.0001452,3]
[353203306,1739646652228,-200.0,0.00014557,5]
[353203307,1739646652237,-6022.16790626,0.00014559,5]
[353203308,1739646652247,-16473.40742452,0.00014561,5]
[353203309,1739646652260,-25844.33299506,0.00014562,5]
[353203310,1739646652270,-11195.11226554,0.00014563,5]
[353203311,1739646652279,-1290.92768892,0.00014563,5]
[353203312,1739646652288,-2581.85537784,0.00014563,5]
[353203313,1739646652297,-1527.54211112,0.00014564,5]
[353203314,1739646652306,-1527.54211112,0.00014565,5]
[353203315,1739646652316,-16473.40742452,0.00014565,5]
[353203316,1739646652325,-1290.92768892,0.00014566,5]
[353203317,1739646652334,-6022.16790626,0.00014566,5]
[353203318,1739646652343,-2581.85537784,0.00014567,5]
[353203319,1739646652352,-7085.12697796,0.00014568,5]
[353203320,1739646652361,-1527.54211112,0.00014569,5]
[353203321,1739646652370,-1527.54211112,0.00014571,5]
[353203322,1739646652380,-11195.11226554,0.00014571,5]
[353203323,1739646652390,-11195.11226554,0.00014572,5]
[353203324,1739646652399,-25844.33299506,0.00014575,5]
[353203325,1739646652408,-200.0,0.00014576,5]
[353203326,1739646652418,-2581.85537784,0.00014576,5]
[353203327,1739646652427,-2581.85537784,0.00014577,5]
[353203328,1739646652437,-7085.12697796,0.0001458,5]
[353203329,1739646652446,-25844.33299506,0.00014583,5]
[353203330,1739646652455,-200.0,0.00014584,5]
[353203331,1739646652465,-11195.11226554,0.00014585,5]
[353203332,1739646652474,-16473.40742452,0.00014587,5]
[353203333,1739646652483,-7085.12697796,0.00014587,5]
[353203334,1739646652492,-1290.92768892,0.00014587,5]
[353203335,1739646652502,-6022.16790626,0.00014588,5]
[353203336,1739646652511,-1290.92768892,0.00014589,5]
[353203337,1739646652520,-7085.12697796,0.00014593,5]
[353203338,1739646652529,-6022.16790626,0.00014595,5]
[353203339,1739646652538,-16473.40742452,0.00014596,5]
[353203340,1739646652547,-458.22,0.00014598,2]
[353203341,1739646652557,-25844.33299506,0.00014598,5]
[353203342,1739646652566,-10000.0,0.000146,2]
[353203343,1739646652575,-150.0,0.00014637,2]
[353203344,1739646652584,-150.0,0.00014642,2]
[353203345,1739646652594,-152.0,0.00014672,19]
[353203346,1739646652604,-2396.71,0.00014684,2]
[353203347,1739646652613,-186.671,0.00014684,2]
[353203348,1739646652623,-150.0,0.00014689,2]
[353203349,1739646652632,-153.60690226,0.000147,2]
[353203350,1739646652641,-174.94876258,0.000147,2]
[353203351,1739646652651,-1118.14041764,0.000147,2]
[353203352,1739646652660,-156.04846152,0.000147,2]
[353203353,1739646652670,-203.05995541,0.000147,2]
[353203354,1739646652680,-150.0,0.00014709,2]
[353203355,1739646652689,-201.0,0.0001471,2]
[353203356,1739646652699,-194.56864723,0.00014716,2]
[353203357,1739646652708,-3759.88666793,0.00014716,2]
[353203358,1739646652717,-174.75,0.00014726,2]
[353203359,1739646652727,-150.0,0.00014743,2]
[353203361,1739646652736,-150.0,0.0001475,2]
[353203362,1739646652746,-1000.0,0.00014759,2]
[353203363,1739646652755,-188.59300443,0.00014779,2]
[353203364,1739646652764,-1000.0,0.00014784,2]
[353203365,1739646652774,-202.73622945,0.00014789,2]
[353203366,1739646652783,-150.0,0.00014789,2]
[353203367,1739646652792,-285.16,0.00014791,2]
[353203368,1739646652802,-1362.42,0.00014794,3]
[353203369,1739646652811,-245.16980306,0.00014795,2]
[353203370,1739646652820,-193.19827275,0.00014795,2]
[353203371,1739646652830,-219.32950524,0.00014795,2]
[353203372,1739646652839,-191.65564496,0.00014795,2]
[353203373,1739646652848,-2535.0,0.00014798,7]
[353203374,1739646652858,-1514.70107564,0.00014799,3]
[353203375,1739646652867,-190996.27422687,0.00014799,3]
[353203376,1739646653099,-324642.25580556,0.00014799,3]
[353203377,1739646653111,-707.3898016,0.00014799,3]
[353203378,1739646653169,-2906.67257582,0.00014799,3]
[353203379,1739646653184,-20225.04983083,0.00014799,3]
[353203380,1739646653253,-631.0339,0.00014799,3]
[353203381,1739646653265,-2186.28936265,0.00014799,3]
[353203382,1739646653276,-3244.59061171,0.00014799,3]
[353203383,1739646653287,-8453.91465684,0.00014799,3]
[353203384,1739646653298,-281.8745621,0.00014799,3]
[353203385,1739646653313,-71268.87703326,0.00014799,3]
[353203386,1739646653329,-1562.74344531,0.00014799,3]
[353203396,1739646667959,5309.77859267,6.781e-05,7]
[353203397,1739646668592,38528.8283671,6.781e-05,7]
[353203456,1739646786116,588.5597,8.256e-05,2]
[353203524,1739647537585,10000.0,8e-05,2]
[353203525,1739647555931,29161.75984944,6.94e-05,2]
[353203526,1739647568038,1178.37621637,8e-05,2]
[353203539,1739647832394,-1550.0,8.836e-05,2]
[353203540,1739647832405,-201.29657453,8.851e-05,2]
[353203541,1739647832414,-899.08083777,8.851e-05,2]
[353203542,1739647832424,-2500.0,8.851e-05,2]
[353203543,1739647832433,-326.5832909,8.973e-05,2]
[353203544,1739647832445,-900.0,8.973e-05,2]
[353203545,1739647832491,-127.5709091,8.973e-05,2]
[353203546,1739647832500,-899.08083777,8.973e-05,2]
[353203547,1739647832510,-205.0,9.8e-05,2]
[353203548,1739647832520,-759.41679615,9.828e-05,2]
[353203549,1739647832530,-150.0,9.999e-05,2]
[353203550,1739647832539,-46822.08438427,0.0001,2]
[353203551,1739647832587,-5646.58959978,0.0001,2]
[353203552,1739647832599,-372.9696363,0.0001,2]
[353203553,1739647832611,-52801.11295073,0.0001,2]
[353203554,1739647832656,-256.28236126,0.0001,2]
[353203667,1739647838378,-2004.73922664,0.0001,2]
[353203668,1739647838390,-35021.37951679,0.0001,2]
[353203669,1739647840478,-488.123888,0.0001,2]
[353203670,1739647840587,-145176.99529539,0.0001,2]
[353203671,1739647840597,-66864.78591641,0.0001,2]
[353203672,1739647840607,-201.29657453,0.00010037,2]
[353203673,1739647840616,-150.92,0.00010137,2]
[353203674,1739647840627,-1104.91,0.00010952,2]
[353203675,1739647840640,-508.66004663,0.00011099,2]
[353203676,1739647840649,-508.66004661,0.00011099,2]
[353203677,1739647840659,-508.66004661,0.00011099,2]
[353203678,1739647840669,-500.0,0.00011121,2]
[353203679,1739647840678,-504.91,0.00011122,2]
[353203680,1739647840687,-499.94,0.00011122,2]
[353203681,1739647840697,-490.58,0.00011122,2]
[353203682,1739647840708,-491.64,0.00011122,2]
[353203683,1739647840718,-496.16,0.00011122,2]
[353203684,1739647840728,-500.0,0.00011122,2]
[353203685,1739647840737,-500.0,0.00011154,2]
[353203686,1739647840747,-600.0,0.00011154,2]
[353203687,1739647840756,-600.0,0.00011154,2]
[353203688,1739647840765,-266.41588234,0.000112,2]
[353203689,1739647840775,-500.0,0.00011204,2]
[353203690,1739647840784,-487.05,0.00011287,2]
[353203691,1739647840795,-208.16,0.000113,2]
[353203693,1739647840804,-508.66004661,0.00011504,2]
[353203694,1739647840813,-178.68388447,0.00011799,2]
[353203696,1739647840823,-500.0,0.00011799,2]
[353203698,1739647840832,-500.0,0.00011799,2]
[353203700,1739647840841,-500.0,0.00011799,2]
[353203701,1739647840851,-176.53883887,0.00011799,2]
[353203702,1739647840860,-355.97112829,0.00011799,2]
[353203703,1739647840870,-202431.33750817,0.000118,2]
[353203704,1739647840879,-322.37176522,0.00011982,2]
[353203705,1739647840888,-508.66004661,0.00012039,2]
[353203706,1739647840898,-1075.90448446,0.00012082,2]
[353203708,1739647840908,-500.0,0.00012354,2]
[353203709,1739647840918,-159.43135614,0.00012384,2]
[353203711,1739647840927,-294.66821128,0.000125,2]
[353203712,1739647840937,-600.0,0.00012524,2]
[353203713,1739647840946,-600.0,0.00012524,2]
[353203714,1739647840956,-159.43135614,0.00012548,2]
[353203715,1739647840966,-508.66004661,0.00012574,2]
[353203716,1739647840977,-1661.48,0.00012703,2]
[353203717,1739647840988,-783.0,0.00012703,2]
[353203718,1739647840998,-539.0,0.00012703,2]
[353203719,1739647841007,-4027.0,0.00012703,2]
[353203720,1739647841018,-1071.598,0.00012703,2]
[353203721,1739647841027,-157.444,0.00012703,2]
[353203722,1739647841037,-3915.0,0.00012703,2]
[353203723,1739647841046,-1203.445,0.00012703,2]
[353203724,1739647841056,-159.43135614,0.00012712,2]
[353203725,1739647841065,-159.43135614,0.00012877,2]
[353203726,1739647841075,-497.81,0.00012946,2]
[353203727,1739647841084,-2439.9713053,0.00013,2]
[353203728,1739647841095,-159.43135614,0.00013041,2]
[353203729,1739647841104,-508.66004661,0.00013109,2]
[353203730,1739647841119,-3082.32532651,0.00013155,2]
[353203731,1739647841128,-23900.0,0.00013156,2]
[353203732,1739647841137,-599.05226023,0.00013205,2]
[353203733,1739647841147,-163.37788916,0.00013205,2]
[353203734,1739647841156,-1104.91,0.00013216,2]
[353203735,1739647841166,-166.66,0.00013256,2]
[353203736,1739647841176,-500.0,0.0001326,2]
[353203737,1739647841185,-322.37176522,0.00013285,2]
[353203738,1739647841195,-599.05226023,0.00013288,2]
[353203739,1739647841204,-163.37788916,0.00013288,2]
[353203740,1739647841213,-500.0,0.00013339,2]
[353203741,1739647841223,-599.05226023,0.00013342,2]
[353203742,1739647841232,-163.37788916,0.0001337,2]
[353203743,1739647841242,-599.05226023,0.00013397,2]
[353203744,1739647841252,-163.37788916,0.00013425,2]
[353203745,1739647841261,-599.05226023,0.00013479,2]
[353203746,1739647841271,-163.37788916,0.00013507,2]
[353203747,1739647841281,-599.05226023,0.00013534,2]
[353203748,1739647841290,-163.37788916,0.00013562,2]
[353203749,1739647841300,-599.05226023,0.00013589,2]
[353203750,1739647841310,-179.67,0.00013629,2]
[353203751,1739647841319,-508.66004661,0.00013643,2]
[353203752,1739647841329,-163.37788916,0.00013644,2]
[353203753,1739647841338,-599.05226023,0.00013671,2]
[353203754,1739647841348,-200.0,0.00013699,2]
[353203755,1739647841357,-163.37788916,0.00013699,2]
[353203756,1739647841367,-165.28,0.00013699,2]
[353203757,1739647841376,-4000.0,0.00013699,2]
[353203758,1739647841386,-599.05226023,0.00013726,2]
[353203759,1739647841395,-163.37788916,0.00013781,2]
[353203760,1739647841405,-163.37788916,0.00013863,2]
[353203761,1739647841414,-500.0,0.00013894,2]
[353203762,1739647841424,-600.0,0.00013894,2]
[353203763,1739647841433,-600.0,0.00013894,2]
[353203764,1739647841442,-163.37788916,0.00013918,2]
[353203765,1739647841451,-500.0,0.000141,2]
[353203766,1739647841460,-508.66004661,0.00014178,2]
[353203767,1739647841470,-2560.577,0.00014249,2]
[353203768,1739647841479,-160.994,0.00014249,2]
[353203769,1739647841489,-493.8113553,0.00014501,2]
[353203770,1739647841499,-2358.21,0.0001452,3]
[353203771,1739647841509,-21046.35239907,0.0001456,5]
[353203772,1739647841519,-15726.69945918,0.0001456,5]
[353203773,1739647841528,-497.81,0.00014564,2]
[353203774,1739647841538,-610.28431001,0.00014565,5]
[353203775,1739647841548,-15726.69945918,0.00014566,5]
[353203776,1739647841557,-15726.69945918,0.00014566,5]
[353203777,1739647841567,-21046.35239907,0.00014567,5]
[353203778,1739647841576,-825.57759136,0.00014568,5]
[353203779,1739647841586,-610.28431001,0.00014568,5]
[353203780,1739647841595,-428.62538284,0.00014569,5]
[353203781,1739647841604,-428.62538284,0.0001457,5]
[353203782,1739647841613,-545657.16019745,0.00014572,5]
[353203783,1739647841622,-428.62538284,0.00014572,5]
[353203784,1739647841635,-610.28431001,0.00014574,5]
[353203785,1739647841644,-21046.35239907,0.00014574,5]
[353203786,1739647841653,-6110.1684445,0.00014575,5]
[353203787,1739647841663,-6110.1684445,0.00014576,5]
[353203788,1739647841673,-825.57759136,0.00014576,5]
[353203789,1739647841682,-6110.1684445,0.00014576,5]
[353203790,1739647841692,-825.57759136,0.0001458,5]
[353203791,1739647841701,-825.57759136,0.0001458,5]
[353203792,1739647841712,-21046.35239907,0.00014583,5]
[353203793,1739647841722,-6110.1684445,0.00014586,5]
[353203794,1739647841732,-545657.16019745,0.00014588,5]
[353203795,1739647841741,-322.37176522,0.00014588,2]
[353203796,1739647841751,-15726.69945918,0.00014593,5]
[353203797,1739647841760,-545657.16019745,0.00014593,5]
[353203798,1739647841770,-610.28431001,0.00014593,5]
[353203799,1739647841779,-428.62538284,0.00014595,5]
[353203800,1739647841788,-545657.16019745,0.00014597,5]
[353203801,1739647841798,-295.35406194,0.00014599,2]
[353203802,1739647841807,-10000.0,0.000146,2]
[353203803,1739647841816,-4000.0,0.0001465,2]
[353203804,1739647841826,-154.74559654,0.000147,2]
[353203805,1739647841835,-161.6528988,0.000147,2]
[353203806,1739647841844,-162.96351248,0.000147,2]
[353203807,1739647841853,-745.4269451,0.000147,2]
[353203808,1739647841863,-342.31972205,0.000147,2]
[353203809,1739647841872,-150.0,0.00014703,2]
[353203810,1739647841881,-508.66004661,0.00014713,2]
[353203811,1739647841891,-194.56864723,0.00014713,2]
[353203812,1739647841900,-432.08438454,0.00014725,2]
[353203813,1739647841909,-150.0,0.00014727,2]
[353203814,1739647841919,-150.0,0.00014737,2]
[353203815,1739647841928,-150.0,0.00014742,2]
[353203816,1739647841938,-500.0,0.00014748,2]
[353203817,1739647841947,-2000.0,0.00014748,2]
[353203818,1739647841956,-500.0,0.00014748,2]
[353203819,1739647841966,-500.0,0.00014748,2]
[353203820,1739647841979,-200.0,0.00014748,2]
[353203821,1739647841990,-150.0,0.00014753,2]
[353203822,1739647841999,-9897.77553545,0.00014753,2]
[353203823,1739647842008,-9897.77553545,0.00014762,2]
[353203824,1739647842018,-150.0,0.00014768,2]
[353203825,1739647842028,-176.28048689,0.0001477,2]
[353203826,1739647842038,-9897.77553545,0.00014771,2]
[353203827,1739647842047,-150.0,0.00014775,2]
[353203828,1739647842057,-503.62522052,0.00014776,2]
[353203829,1739647842067,-9897.77553545,0.0001478,2]
[353203830,1739647842077,-1000.0,0.00014788,2]
[353203831,1739647842087,-182.87115968,0.00014789,2]
[353203832,1739647842098,-150.0,0.00014793,2]
[353203833,1739647842108,-150.0,0.00014794,2]
[353203834,1739647842117,-2358.21,0.00014794,3]
[353203835,1739647842127,-1351.0,0.00014797,2]
[353203836,1739647842137,-500.0,0.00014797,2]
[353203837,1739647842146,-500.0,0.00014797,2]
[353203838,1739647842155,-1000.0,0.00014797,2]
[353203839,1739647842165,-1000.0,0.00014797,2]
[353203840,1739647842175,-1000.0,0.00014797,2]
[353203841,1739647842185,-1000.0,0.00014797,2]
[353203842,1739647842194,-1000.0,0.00014797,2]
[353203843,1739647842203,-1000.0,0.00014797,2]
[353203844,1739647842213,-300.0,0.00014798,2]
[353203845,1739647842222,-500.0,0.00014798,2]
[353203846,1739647842232,-500.0,0.00014798,2]
[353203847,1739647842242,-500.0,0.00014798,2]
[353203848,1739647842252,-500.0,0.00014798,2]
[353203849,1739647842262,-500.0,0.00014798,2]
[353203850,1739647842271,-500.0,0.00014798,2]
[353203851,1739647842281,-500.0,0.00014798,2]
[353203852,1739647842290,-513.09,0.00014798,2]
[353203853,1739647842299,-500.0,0.00014798,2]
[353203854,1739647842309,-500.0,0.00014798,2]
[353203855,1739647842319,-500.0,0.00014798,2]
[353203856,1739647842328,-500.0,0.00014798,2]
[353203857,1739647842338,-500.0,0.00014798,2]
[353203858,1739647842348,-500.0,0.00014798,2]
[353203859,1739647842357,-500.0,0.00014798,2]
[353203860,1739647842367,-500.0,0.00014798,2]
[353203861,1739647842376,-500.0,0.00014798,2]
[353203862,1739647842386,-500.0,0.00014798,2]
[353203863,1739647842395,-372.98651735,0.00014798,2]
[353203864,1739647842405,-500.0,0.00014798,2]
[353203865,1739647842415,-500.0,0.00014798,2]
[353203866,1739647842425,-500.0,0.00014798,2]
[353203867,1739647842435,-500.0,0.00014798,2]
[353203868,1739647842444,-500.0,0.00014798,2]
[353203869,1739647842454,-500.0,0.00014798,2]
[353203870,1739647842463,-500.0,0.00014798,2]
[353203871,1739647842473,-500.0,0.00014798,2]
[353203872,1739647842482,-500.0,0.00014798,2]
[353203873,1739647842491,-500.0,0.00014798,2]
[353203874,1739647842502,-500.0,0.00014798,2]
[353203875,1739647842511,-757.35053782,0.00014799,3]
[353203876,1739647842521,-1006006.56156636,0.00014799,3]
[353203898,1739647843680,-686.0,0.00014799,3]
[353203900,1739647846293,-856.7929336,0.00014799,3]
[353203901,1739647846348,-610.20498772,0.00014799,3]
[353203902,1739647846450,-591022.98232717,0.00014799,3]
[353203903,1739647846464,-47513.24314141,0.00014799,3]
[353203904,1739647846476,-6667.96128717,0.00014799,3]
[353203918,1739648814598,266.6967,8.699e-05,2]
[353203920,1739648844872,562.4685,8.699e-05,2]
[353203921,1739649021688,200.0,8.656e-05,2]
[353203936,1739649031614,-1891.8899,8.836e-05,2]
[353203937,1739649031623,-1000.0,8.851e-05,2]
[353203938,1739649031632,-500.0,8.851e-05,2]
[353203939,1739649031642,-1000.0,8.851e-05,2]
[353203940,1739649031651,-300.0,8.972e-05,2]
[353203941,1739649031661,-240.1101,8.973e-05,2]
[353203942,1739649031672,-282.7525456,8.973e-05,2]
[353203943,1739649031682,-691.94858545,8.973e-05,2]
[353203944,1739649031718,-729.83756895,8.973e-05,2]
[353203945,1739649031728,-150.0,9.736e-05,2]
[353203946,1739649031738,-420.0,9.869e-05,2]
[353203947,1739649031751,-150.0,0.00010003,2]
[353203948,1739649031762,-200.0,0.0001001,2]
[353203949,1739649031771,-499.29,0.0001006,2]
[353203950,1739649031781,-500.0,0.0001012,2]
[353203951,1739649031791,-234.12,0.00010137,2]
[353203952,1739649031800,-503.57,0.00010174,2]
[353203953,1739649031810,-2000.0,0.00010219,2]
[353203954,1739649031820,-484.77,0.00010219,2]
[353203955,1739649031829,-150.0,0.00010329,2]
[353203956,1739649031839,-493.26,0.00010359,2]
[353203957,1739649031849,-161.49,0.00010711,2]
[353203958,1739649031859,-587.0,0.00010856,2]
[353203959,1739649031869,-150.0,0.00010957,2]
[353203960,1739649031878,-637.57,0.00010958,2]
[353203961,1739649031891,-501.41210496,0.00010958,2]
[353203962,1739649031903,-500.0,0.00010958,2]
[353203963,1739649031916,-500.0,0.00010958,2]
[353203964,1739649031929,-500.0,0.00010958,2]
[353203966,1739649031941,-500.0,0.00010958,2]
[353203967,1739649031952,-562.41376018,0.00010958,2]
[353203968,1739649031962,-500.0,0.00010958,2]
[353203969,1739649031973,-500.0,0.00010958,2]
[353203970,1739649031984,-500.0,0.00010958,2]
[353203971,1739649031995,-500.0,0.00010958,2]
[353203972,1739649032007,-501.57041341,0.00010958,2]
[353203973,1739649032018,-511.85,0.00010958,2]
[353203974,1739649032031,-500.0,0.00010958,2]
[353203976,1739649032044,-500.0,0.00010958,2]
[353203978,1739649032057,-500.0,0.00010958,2]
[353203980,1739649032070,-500.0,0.00010958,2]
[353203982,1739649032081,-500.0,0.00010958,2]
[353203984,1739649032092,-500.0,0.00010958,2]
[353203986,1739649032104,-500.0,0.00010958,2]
[353203987,1739649032116,-500.0,0.00010958,2]
[353203989,1739649032127,-500.0,0.00010958,2]
[353203991,1739649032138,-500.0,0.00010958,2]